[Event "Titled Tuesday Blitz April 19 Late 2022"]
[White "Petrovic, Aleksa"]
[Black "Maranhao,Jose Renato Ruiz"]
[WhiteFideId "967629"]
[BlackFideId "2135175"]
[WhiteElo "2198"]
[BlackElo "1970"]
[Result "1-0"]
[Round "02"]
[TimeControl "180+1"]
[Date "2022.04.19"]
[WhiteClock "0:02:19"]
[BlackClock "0:00:16"]

1. d4 {[%clk 0:02:59]}  d5 {[%clk 0:02:57]} 2. c4 {[%clk 0:02:58]}  c6 {[%clk 0:02:58]} 3. Nf3 {[%clk 0:02:58]}  Nf6 {[%clk 0:02:58]} 4. Nc3 {[%clk 0:02:58]}  e6 {[%clk 0:02:57]} 5. e3 {[%clk 0:02:58]}  Nbd7 {[%clk 0:02:56]} 6. Qc2 {[%clk 0:02:59]}  Bd6 {[%clk 0:02:55]} 7. Bd3 {[%clk 0:02:59]}  dxc4 {[%clk 0:02:53]} 8. Bxc4 {[%clk 0:02:59]}  b5 {[%clk 0:02:54]} 9. Bd3 {[%clk 0:02:58]}  Bb7 {[%clk 0:02:54]} 10. O-O {[%clk 0:02:57]}  O-O {[%clk 0:02:47]} 11. Ng5 {[%clk 0:02:56]}  h6 {[%clk 0:02:43]} 12. Nge4 {[%clk 0:02:43]}  Nxe4 {[%clk 0:02:42]} 13. Bxe4 {[%clk 0:02:35]}  Nf6 {[%clk 0:02:36]} 14. Nxb5 {[%clk 0:02:28]}  Nxe4 {[%clk 0:01:57]} 15. Qxe4 {[%clk 0:02:29]}  Ba6 {[%clk 0:01:54]} 16. Qxc6 {[%clk 0:02:26]}  Qb6 {[%clk 0:00:28]} 17. Qxb6 {[%clk 0:02:20]}  axb6 {[%clk 0:00:29]} 18. Nxd6 {[%clk 0:02:20]}  Bxf1 {[%clk 0:00:29]} 19. Kxf1 {[%clk 0:02:21]}  Rfd8 {[%clk 0:00:21]} 20. Ne4 {[%clk 0:02:20]}  b5 {[%clk 0:00:16]} 21. Bd2 {[%clk 0:02:19]} 1-0


[Site "https://www.chess.com"]

[Event "Titled Tuesday Blitz April 19 Late 2022"]
[White "Pinheiro, Iung Alicio de O."]
[Black "Hambleton, Aman"]
[WhiteFideId "2104350"]
[BlackFideId "2606577"]
[WhiteElo "2584"]
[BlackElo "2552"]
[Result "1-0"]
[Round "02"]
[TimeControl "180+1"]
[Date "2022.04.19"]
[WhiteClock "0:00:14"]
[BlackClock "0:00:01"]

1. c4 {[%clk 0:02:59]}  c5 {[%clk 0:02:53]} 2. g3 {[%clk 0:02:59]}  e6 {[%clk 0:02:49]} 3. Nf3 {[%clk 0:02:56]}  b6 {[%clk 0:02:48]} 4. Bg2 {[%clk 0:02:50]}  Bb7 {[%clk 0:02:48]} 5. O-O {[%clk 0:02:51]}  Nf6 {[%clk 0:02:49]} 6. Nc3 {[%clk 0:02:48]}  a6 {[%clk 0:02:44]} 7. Re1 {[%clk 0:02:47]}  d6 {[%clk 0:02:43]} 8. e4 {[%clk 0:02:47]}  Be7 {[%clk 0:02:38]} 9. d4 {[%clk 0:02:36]}  cxd4 {[%clk 0:02:39]} 10. Nxd4 {[%clk 0:02:35]}  Qc7 {[%clk 0:02:39]} 11. Be3 {[%clk 0:02:17]}  O-O {[%clk 0:02:33]} 12. Rc1 {[%clk 0:02:17]}  Nbd7 {[%clk 0:02:34]} 13. b3 {[%clk 0:02:08]}  Rac8 {[%clk 0:02:24]} 14. g4 {[%clk 0:02:07]}  g6 {[%clk 0:02:09]} 15. g5 {[%clk 0:01:35]}  Nh5 {[%clk 0:02:09]} 16. Nde2 {[%clk 0:01:35]}  f5 {[%clk 0:01:28]} 17. gxf6 {[%clk 0:01:27]}  Bxf6 {[%clk 0:01:22]} 18. Qd2 {[%clk 0:00:45]}  Ne5 {[%clk 0:01:07]} 19. h3 {[%clk 0:00:43]}  Bh4 {[%clk 0:00:58]} 20. Nd4 {[%clk 0:00:33]}  Rf6 {[%clk 0:00:39]} 21. Rf1 {[%clk 0:00:30]}  Nf7 {[%clk 0:00:07]} 22. f4 {[%clk 0:00:27]}  Re8 {[%clk 0:00:05]} 23. Nde2 {[%clk 0:00:26]}  Rf8 {[%clk 0:00:03]} 24. Rcd1 {[%clk 0:00:25]}  Ba8 {[%clk 0:00:03]} 25. Na4 {[%clk 0:00:21]}  b5 {[%clk 0:00:03]} 26. cxb5 {[%clk 0:00:21]}  axb5 {[%clk 0:00:04]} 27. Nac3 {[%clk 0:00:21]}  Bc6 {[%clk 0:00:03]} 28. Rc1 {[%clk 0:00:20]}  Qb7 {[%clk 0:00:03]} 29. b4 {[%clk 0:00:20]}  Ng3 {[%clk 0:00:02]} 30. Nxg3 {[%clk 0:00:19]}  Bxg3 {[%clk 0:00:03]} 31. a4 {[%clk 0:00:17]}  bxa4 {[%clk 0:00:03]} 32. b5 {[%clk 0:00:17]}  Bd7 {[%clk 0:00:01]} 33. Rb1 {[%clk 0:00:15]}  e5 {[%clk 0:00:01]} 34. f5 {[%clk 0:00:14]}  gxf5 {[%clk 0:00:02]} 35. exf5 {[%clk 0:00:15]}  Qb8 {[%clk 0:00:02]} 36. Ne4 {[%clk 0:00:14]}  Rxf5 {[%clk 0:00:01]} 37. Nxg3 {[%clk 0:00:15]}  Rxf1+ {[%clk 0:00:02]} 38. Rxf1 {[%clk 0:00:15]}  Qxb5 {[%clk 0:00:01]} 39. Nf5 {[%clk 0:00:14]}  Kh8 {[%clk 0:00:01]} 40. Nxd6 {[%clk 0:00:13]}  Nxd6 {[%clk 0:00:01]} 41. Rxf8+ {[%clk 0:00:14]}  Kg7 {[%clk 0:00:01]} 42. Qxd6 {[%clk 0:00:14]}  Qb1+ {[%clk 0:00:01]} 43. Kh2 {[%clk 0:00:14]} 1-0


[Site "https://www.chess.com"]

[Event "Titled Tuesday Blitz April 19 Late 2022"]
[White "Potapova, Margarita"]
[Black "Oparin, Grigoriy"]
[WhiteFideId "14126869"]
[BlackFideId "24125890"]
[WhiteElo "2216"]
[BlackElo "2665"]
[Result "0-1"]
[Round "02"]
[TimeControl "180+1"]
[Date "2022.04.19"]
[WhiteClock "0:00:02"]
[BlackClock "0:00:17"]

1. d4 {[%clk 0:03:00]}  Nf6 {[%clk 0:03:00]} 2. c4 {[%clk 0:03:01]}  e6 {[%clk 0:03:01]} 3. Nc3 {[%clk 0:03:01]}  Bb4 {[%clk 0:03:01]} 4. Qc2 {[%clk 0:03:02]}  d5 {[%clk 0:03:01]} 5. cxd5 {[%clk 0:03:01]}  exd5 {[%clk 0:03:02]} 6. Bg5 {[%clk 0:03:00]}  h6 {[%clk 0:02:59]} 7. Bh4 {[%clk 0:03:00]}  g5 {[%clk 0:02:56]} 8. Bg3 {[%clk 0:03:01]}  Nc6 {[%clk 0:02:55]} 9. e3 {[%clk 0:03:01]}  h5 {[%clk 0:02:54]} 10. Bb5 {[%clk 0:03:01]}  h4 {[%clk 0:02:48]} 11. Be5 {[%clk 0:03:01]}  O-O {[%clk 0:02:48]} 12. Ne2 {[%clk 0:02:43]}  Ne4 {[%clk 0:02:44]} 13. Bxc6 {[%clk 0:02:09]}  bxc6 {[%clk 0:02:45]} 14. f3 {[%clk 0:02:09]}  Nxc3 {[%clk 0:02:42]} 15. bxc3 {[%clk 0:02:10]}  Be7 {[%clk 0:02:32]} 16. f4 {[%clk 0:01:39]}  g4 {[%clk 0:02:22]} 17. f5 {[%clk 0:01:39]}  f6 {[%clk 0:02:19]} 18. Bf4 {[%clk 0:01:39]}  Qd7 {[%clk 0:02:19]} 19. O-O {[%clk 0:01:36]}  Rf7 {[%clk 0:02:05]} 20. e4 {[%clk 0:01:26]}  dxe4 {[%clk 0:01:59]} 21. Qxe4 {[%clk 0:01:27]}  Rb8 {[%clk 0:01:52]} 22. Bh6 {[%clk 0:01:10]}  Rh7 {[%clk 0:01:44]} 23. Qxg4+ {[%clk 0:01:09]}  Kh8 {[%clk 0:01:45]} 24. Bd2 {[%clk 0:00:50]}  Bd6 {[%clk 0:01:44]} 25. Nf4 {[%clk 0:00:42]}  Bxf4 {[%clk 0:01:43]} 26. Bxf4 {[%clk 0:00:35]}  Rb2 {[%clk 0:01:32]} 27. Rae1 {[%clk 0:00:29]}  Qf7 {[%clk 0:01:28]} 28. Kh1 {[%clk 0:00:25]}  Bd7 {[%clk 0:01:25]} 29. Re3 {[%clk 0:00:23]}  Qg7 {[%clk 0:01:15]} 30. Qf3 {[%clk 0:00:13]}  Qg8 {[%clk 0:01:12]} 31. Bxc7 {[%clk 0:00:10]}  h3 {[%clk 0:01:09]} 32. g3 {[%clk 0:00:09]}  Qxa2 {[%clk 0:01:08]} 33. Bd8 {[%clk 0:00:03]}  Rxh2+ {[%clk 0:01:05]} 34. Kg1 {[%clk 0:00:03]}  Rg2+ {[%clk 0:00:39]} 35. Kh1 {[%clk 0:00:03]}  Rh2+ {[%clk 0:00:30]} 36. Kg1 {[%clk 0:00:04]}  Qg2+ {[%clk 0:00:21]} 37. Qxg2 {[%clk 0:00:04]}  Rxg2+ {[%clk 0:00:22]} 38. Kh1 {[%clk 0:00:03]}  Rf7 {[%clk 0:00:22]} 39. Re7 {[%clk 0:00:03]}  Kg7 {[%clk 0:00:20]} 40. Rxf7+ {[%clk 0:00:03]}  Kxf7 {[%clk 0:00:21]} 41. Bc7 {[%clk 0:00:03]}  Rc2 {[%clk 0:00:18]} 42. Bf4 {[%clk 0:00:02]}  Bxf5 {[%clk 0:00:17]} 43. Re1 {[%clk 0:00:02]}  Be6 {[%clk 0:00:17]} 44. Bd6 {[%clk 0:00:02]}  Bd5+ {[%clk 0:00:17]} 0-1


[Site "https://www.chess.com"]

[Event "Titled Tuesday Blitz April 19 Late 2022"]
[White "Rego, Vinicius V. de Almeida"]
[Black "Vusatiuk, Vladimir"]
[WhiteFideId "2106485"]
[BlackFideId "14118610"]
[WhiteElo "2345"]
[BlackElo "2157"]
[Result "0-1"]
[Round "02"]
[TimeControl "180+1"]
[Date "2022.04.19"]
[WhiteClock "0:00:26"]
[BlackClock "0:00:18"]

1. Nf3 {[%clk 0:03:00]}  Nf6 {[%clk 0:02:59]} 2. c4 {[%clk 0:02:55]}  e6 {[%clk 0:02:58]} 3. d4 {[%clk 0:02:54]}  a6 {[%clk 0:02:57]} 4. Nc3 {[%clk 0:02:51]}  d5 {[%clk 0:02:58]} 5. cxd5 {[%clk 0:02:42]}  exd5 {[%clk 0:02:59]} 6. Bg5 {[%clk 0:02:38]}  Be7 {[%clk 0:02:58]} 7. e3 {[%clk 0:02:31]}  Be6 {[%clk 0:02:58]} 8. Bd3 {[%clk 0:02:14]}  O-O {[%clk 0:02:57]} 9. O-O {[%clk 0:02:06]}  Nbd7 {[%clk 0:02:57]} 10. Qb3 {[%clk 0:02:04]}  b5 {[%clk 0:02:42]} 11. Rac1 {[%clk 0:01:52]}  c5 {[%clk 0:02:25]} 12. dxc5 {[%clk 0:01:52]}  Nxc5 {[%clk 0:02:26]} 13. Qc2 {[%clk 0:01:52]}  Nxd3 {[%clk 0:02:26]} 14. Qxd3 {[%clk 0:01:53]}  Rc8 {[%clk 0:02:12]} 15. Nd4 {[%clk 0:01:52]}  h6 {[%clk 0:01:59]} 16. Bh4 {[%clk 0:01:51]}  Qb6 {[%clk 0:01:43]} 17. Rfd1 {[%clk 0:01:38]}  Rfd8 {[%clk 0:01:24]} 18. h3 {[%clk 0:01:36]}  Rd7 {[%clk 0:01:19]} 19. Nce2 {[%clk 0:00:53]}  Rc4 {[%clk 0:00:55]} 20. b3 {[%clk 0:00:51]}  Rxc1 {[%clk 0:00:55]} 21. Rxc1 {[%clk 0:00:51]}  Rc7 {[%clk 0:00:53]} 22. Rxc7 {[%clk 0:00:51]}  Qxc7 {[%clk 0:00:53]} 23. Nxe6 {[%clk 0:00:52]}  fxe6 {[%clk 0:00:54]} 24. Nf4 {[%clk 0:00:53]}  Bd6 {[%clk 0:00:35]} 25. Bxf6 {[%clk 0:00:30]}  Bxf4 {[%clk 0:00:35]} 26. exf4 {[%clk 0:00:30]}  Qc1+ {[%clk 0:00:34]} 27. Qf1 {[%clk 0:00:27]}  Qxf1+ {[%clk 0:00:34]} 28. Kxf1 {[%clk 0:00:28]}  gxf6 {[%clk 0:00:35]} 29. f5 {[%clk 0:00:29]}  exf5 {[%clk 0:00:26]} 30. Ke2 {[%clk 0:00:29]}  Kf7 {[%clk 0:00:26]} 31. Kd3 {[%clk 0:00:29]}  f4 {[%clk 0:00:22]} 32. Kd4 {[%clk 0:00:28]}  Ke6 {[%clk 0:00:22]} 33. Kc5 {[%clk 0:00:28]}  Ke5 {[%clk 0:00:22]} 34. f3 {[%clk 0:00:26]}  d4 {[%clk 0:00:18]} 35. h4 {[%clk 0:00:26]}  d3 {[%clk 0:00:18]} 0-1


[Site "https://www.chess.com"]

[Event "Titled Tuesday Blitz April 19 Late 2022"]
[White "Riehle, Marco"]
[Black "Zakhartsov, Vladimir"]
[WhiteFideId "12904392"]
[BlackFideId "4145097"]
[WhiteElo "2462"]
[BlackElo "2491"]
[Result "0-1"]
[Round "02"]
[TimeControl "180+1"]
[Date "2022.04.19"]
[WhiteClock "0:00:36"]
[BlackClock "0:00:17"]

1. e4 {[%clk 0:03:00]}  c5 {[%clk 0:02:57]} 2. a3 {[%clk 0:03:01]}  g6 {[%clk 0:02:51]} 3. h4 {[%clk 0:03:00]}  d5 {[%clk 0:02:48]} 4. exd5 {[%clk 0:03:00]}  Nf6 {[%clk 0:02:47]} 5. h5 {[%clk 0:03:00]}  Nxh5 {[%clk 0:02:45]} 6. c4 {[%clk 0:02:57]}  e6 {[%clk 0:02:43]} 7. Nc3 {[%clk 0:02:51]}  Nf6 {[%clk 0:02:43]} 8. d4 {[%clk 0:02:42]}  exd5 {[%clk 0:02:42]} 9. Bg5 {[%clk 0:02:42]}  Bg7 {[%clk 0:02:33]} 10. Nxd5 {[%clk 0:02:38]}  O-O {[%clk 0:02:33]} 11. dxc5 {[%clk 0:02:36]}  Qe8+ {[%clk 0:02:28]} 12. Be2 {[%clk 0:02:28]}  Nxd5 {[%clk 0:02:20]} 13. cxd5 {[%clk 0:02:25]}  Bxb2 {[%clk 0:02:19]} 14. Nf3 {[%clk 0:02:23]}  Nd7 {[%clk 0:02:11]} 15. Bh6 {[%clk 0:02:17]}  Nxc5 {[%clk 0:02:03]} 16. Bxf8 {[%clk 0:02:14]}  Qxf8 {[%clk 0:02:01]} 17. Rb1 {[%clk 0:02:11]}  Bxa3 {[%clk 0:01:55]} 18. Ng5 {[%clk 0:02:05]}  h6 {[%clk 0:01:51]} 19. Nf3 {[%clk 0:02:00]}  Bf5 {[%clk 0:01:50]} 20. Ra1 {[%clk 0:01:57]}  Bb2 {[%clk 0:01:39]} 21. Ra2 {[%clk 0:01:57]}  Bc3+ {[%clk 0:01:37]} 22. Kf1 {[%clk 0:01:57]}  a5 {[%clk 0:01:31]} 23. Qc1 {[%clk 0:01:46]}  Bg7 {[%clk 0:01:29]} 24. Bc4 {[%clk 0:01:42]}  Rc8 {[%clk 0:01:25]} 25. Qf4 {[%clk 0:01:37]}  Bd3+ {[%clk 0:01:15]} 26. Kg1 {[%clk 0:01:32]}  g5 {[%clk 0:01:14]} 27. Qc1 {[%clk 0:01:00]}  Nb3 {[%clk 0:01:12]} 28. Qd1 {[%clk 0:01:00]}  Bxc4 {[%clk 0:01:11]} 29. Rc2 {[%clk 0:01:00]}  b5 {[%clk 0:01:09]} 30. d6 {[%clk 0:00:59]}  Rd8 {[%clk 0:01:08]} 31. d7 {[%clk 0:00:56]}  Qe7 {[%clk 0:01:08]} 32. Kh2 {[%clk 0:00:52]}  Qxd7 {[%clk 0:01:07]} 33. Qb1 {[%clk 0:00:51]}  Qd6+ {[%clk 0:00:58]} 34. g3 {[%clk 0:00:51]}  Qd3 {[%clk 0:00:51]} 35. Ne1 {[%clk 0:00:49]}  Qf5 {[%clk 0:00:49]} 36. Ng2 {[%clk 0:00:48]}  Nd4 {[%clk 0:00:47]} 37. Rc3 {[%clk 0:00:46]}  Nf3+ {[%clk 0:00:41]} 38. Rxf3 {[%clk 0:00:46]}  Qxf3 {[%clk 0:00:41]} 39. Qe1 {[%clk 0:00:41]}  Bd5 {[%clk 0:00:40]} 40. Rg1 {[%clk 0:00:42]}  Qh5+ {[%clk 0:00:40]} 41. Nh4 {[%clk 0:00:42]}  gxh4 {[%clk 0:00:40]} 42. g4 {[%clk 0:00:43]}  Qe5+ {[%clk 0:00:39]} 43. Kh3 {[%clk 0:00:41]}  Qxe1 {[%clk 0:00:39]} 44. Rxe1 {[%clk 0:00:42]}  a4 {[%clk 0:00:38]} 45. g5 {[%clk 0:00:41]}  hxg5 {[%clk 0:00:38]} 46. f4 {[%clk 0:00:42]}  gxf4 {[%clk 0:00:37]} 47. Kxh4 {[%clk 0:00:43]}  a3 {[%clk 0:00:37]} 48. Rg1 {[%clk 0:00:37]}  a2 {[%clk 0:00:37]} 49. Rf1 {[%clk 0:00:37]}  a1=Q {[%clk 0:00:29]} 50. Rxf4 {[%clk 0:00:37]}  Qh1+ {[%clk 0:00:25]} 51. Kg4 {[%clk 0:00:37]}  Qg2+ {[%clk 0:00:25]} 52. Kh4 {[%clk 0:00:38]}  Be6 {[%clk 0:00:20]} 53. Kh5 {[%clk 0:00:36]}  Qg6+ {[%clk 0:00:17]} 54. Kh4 {[%clk 0:00:36]}  Bf6+ {[%clk 0:00:17]} 55. Rxf6 {[%clk 0:00:36]}  Qg4# {[%clk 0:00:17]} 0-1


[Site "https://www.chess.com"]

[Event "Titled Tuesday Blitz April 19 Late 2022"]
[White "Romero Ruscalleda, Josep"]
[Black "Jegorovas, Aleksandras"]
[WhiteFideId "2231859"]
[BlackFideId "12801950"]
[WhiteElo "2305"]
[BlackElo "2247"]
[Result "1-0"]
[Round "02"]
[TimeControl "180+1"]
[Date "2022.04.19"]
[WhiteClock "0:01:39"]
[BlackClock "0:01:09"]

1. e4 {[%clk 0:03:00]}  e6 {[%clk 0:02:54]} 2. d4 {[%clk 0:03:00]}  d5 {[%clk 0:02:54]} 3. e5 {[%clk 0:03:00]}  c5 {[%clk 0:02:54]} 4. c3 {[%clk 0:03:00]}  Nc6 {[%clk 0:02:54]} 5. Be3 {[%clk 0:03:00]}  cxd4 {[%clk 0:02:50]} 6. cxd4 {[%clk 0:03:00]}  f6 {[%clk 0:02:51]} 7. exf6 {[%clk 0:02:59]}  Nxf6 {[%clk 0:02:48]} 8. Nc3 {[%clk 0:02:59]}  Bd6 {[%clk 0:02:48]} 9. Bd3 {[%clk 0:02:57]}  O-O {[%clk 0:02:48]} 10. Nf3 {[%clk 0:02:57]}  Bd7 {[%clk 0:02:46]} 11. O-O {[%clk 0:02:51]}  Be8 {[%clk 0:02:40]} 12. Re1 {[%clk 0:02:12]}  Bh5 {[%clk 0:02:36]} 13. Be2 {[%clk 0:02:12]}  a6 {[%clk 0:02:32]} 14. a3 {[%clk 0:02:10]}  Qc7 {[%clk 0:02:29]} 15. h3 {[%clk 0:02:09]}  Rae8 {[%clk 0:02:28]} 16. Rc1 {[%clk 0:02:08]}  h6 {[%clk 0:02:05]} 17. Na4 {[%clk 0:02:00]}  Ne4 {[%clk 0:01:59]} 18. Qc2 {[%clk 0:01:53]}  g5 {[%clk 0:01:34]} 19. Nd2 {[%clk 0:01:51]}  Bh2+ {[%clk 0:01:31]} 20. Kh1 {[%clk 0:01:46]}  Rxf2 {[%clk 0:01:12]} 21. Nxe4 {[%clk 0:01:42]}  dxe4 {[%clk 0:01:09]} 22. Bxf2 {[%clk 0:01:39]} 1-0


[Site "https://www.chess.com"]

[Event "Titled Tuesday Blitz April 19 Late 2022"]
[White "Ronka, Erik"]
[Black "Girsh, Daniel"]
[WhiteFideId "505080"]
[BlackFideId "30949190"]
[WhiteElo "2264"]
[BlackElo "2313"]
[Result "1-0"]
[Round "02"]
[TimeControl "180+1"]
[Date "2022.04.19"]
[WhiteClock "0:00:50"]
[BlackClock "0:00:15"]

1. Nc3 {[%clk 0:02:56]}  d5 {[%clk 0:02:57]} 2. Nf3 {[%clk 0:02:56]}  d4 {[%clk 0:02:56]} 3. Nb1 {[%clk 0:02:55]}  Nc6 {[%clk 0:02:55]} 4. e4 {[%clk 0:02:55]}  dxe3 {[%clk 0:02:49]} 5. fxe3 {[%clk 0:02:56]}  e5 {[%clk 0:02:49]} 6. Nc3 {[%clk 0:02:55]}  Nf6 {[%clk 0:02:49]} 7. Bb5 {[%clk 0:02:54]}  Bd6 {[%clk 0:02:50]} 8. O-O {[%clk 0:02:53]}  h6 {[%clk 0:02:48]} 9. Bxc6+ {[%clk 0:02:48]}  bxc6 {[%clk 0:02:48]} 10. e4 {[%clk 0:02:48]}  O-O {[%clk 0:02:44]} 11. d3 {[%clk 0:02:49]}  Bc5+ {[%clk 0:02:31]} 12. Kh1 {[%clk 0:02:49]}  Ng4 {[%clk 0:02:31]} 13. Qe2 {[%clk 0:02:47]}  f5 {[%clk 0:02:23]} 14. exf5 {[%clk 0:02:46]}  Rxf5 {[%clk 0:02:17]} 15. Ne4 {[%clk 0:02:44]}  Bd6 {[%clk 0:02:14]} 16. b3 {[%clk 0:02:37]}  a5 {[%clk 0:02:05]} 17. a4 {[%clk 0:02:36]}  Rf8 {[%clk 0:02:02]} 18. Bb2 {[%clk 0:02:32]}  Qe7 {[%clk 0:02:02]} 19. h3 {[%clk 0:02:27]}  Nf6 {[%clk 0:01:57]} 20. Nfd2 {[%clk 0:02:27]}  Nd5 {[%clk 0:01:56]} 21. Rxf8+ {[%clk 0:02:25]}  Qxf8 {[%clk 0:01:56]} 22. Rf1 {[%clk 0:02:24]}  Nf4 {[%clk 0:01:52]} 23. Qf3 {[%clk 0:02:24]}  Qe7 {[%clk 0:01:44]} 24. Nc4 {[%clk 0:02:15]}  Be6 {[%clk 0:01:42]} 25. Bc3 {[%clk 0:02:14]}  Bd5 {[%clk 0:01:41]} 26. Nxa5 {[%clk 0:02:09]}  Rf8 {[%clk 0:01:30]} 27. Nc4 {[%clk 0:01:58]}  Rf7 {[%clk 0:01:22]} 28. Qg4 {[%clk 0:01:39]}  Be6 {[%clk 0:01:18]} 29. Qd1 {[%clk 0:01:34]}  Nxh3 {[%clk 0:01:10]} 30. Rxf7 {[%clk 0:01:25]}  Qh4 {[%clk 0:01:04]} 31. g3 {[%clk 0:01:20]}  Nf2+ {[%clk 0:00:19]} 32. Kg2 {[%clk 0:01:19]}  Qxe4+ {[%clk 0:00:19]} 33. dxe4 {[%clk 0:01:19]}  Nxd1 {[%clk 0:00:19]} 34. Nxd6 {[%clk 0:01:11]}  cxd6 {[%clk 0:00:19]} 35. Re7 {[%clk 0:01:11]}  Nxc3 {[%clk 0:00:16]} 36. Rxe6 {[%clk 0:01:10]}  Nxe4 {[%clk 0:00:16]} 37. Re7 {[%clk 0:01:06]}  d5 {[%clk 0:00:15]} 38. a5 {[%clk 0:01:06]}  Kf8 {[%clk 0:00:15]} 39. a6 {[%clk 0:01:02]}  Kxe7 {[%clk 0:00:14]} 40. a7 {[%clk 0:01:02]}  Nd6 {[%clk 0:00:14]} 41. a8=Q {[%clk 0:01:02]}  Ke6 {[%clk 0:00:14]} 42. Qg8+ {[%clk 0:00:57]}  Kf6 {[%clk 0:00:14]} 43. Qf8+ {[%clk 0:00:57]}  Nf7 {[%clk 0:00:15]} 44. Qc5 {[%clk 0:00:54]}  e4 {[%clk 0:00:15]} 45. Qxc6+ {[%clk 0:00:54]}  Ke5 {[%clk 0:00:16]} 46. Qe8+ {[%clk 0:00:53]}  Kf6 {[%clk 0:00:15]} 47. b4 {[%clk 0:00:52]}  Ne5 {[%clk 0:00:15]} 48. b5 {[%clk 0:00:51]}  e3 {[%clk 0:00:15]} 49. b6 {[%clk 0:00:50]}  e2 {[%clk 0:00:15]} 50. Kf2 {[%clk 0:00:50]} 1-0


[Site "https://www.chess.com"]

[Event "Titled Tuesday Blitz April 19 Late 2022"]
[White "Rustemov, Alexander"]
[Black "Fernandez Siles, Luis"]
[WhiteFideId "4119002"]
[BlackFideId "2209420"]
[WhiteElo "2734"]
[BlackElo "2212"]
[Result "0-1"]
[Round "02"]
[TimeControl "180+1"]
[Date "2022.04.19"]
[WhiteClock "0:00:56"]
[BlackClock "0:01:16"]

1. d4 {[%clk 0:03:00]}  Nf6 {[%clk 0:02:59]} 2. c4 {[%clk 0:03:01]}  g6 {[%clk 0:03:00]} 3. Nf3 {[%clk 0:03:01]}  Bg7 {[%clk 0:03:00]} 4. g3 {[%clk 0:03:02]}  O-O {[%clk 0:03:00]} 5. Bg2 {[%clk 0:03:02]}  d6 {[%clk 0:03:00]} 6. Nc3 {[%clk 0:03:02]}  Nc6 {[%clk 0:02:59]} 7. O-O {[%clk 0:03:02]}  Bf5 {[%clk 0:02:59]} 8. Ne1 {[%clk 0:03:01]}  Qd7 {[%clk 0:02:50]} 9. e4 {[%clk 0:03:00]}  Bh3 {[%clk 0:02:50]} 10. f3 {[%clk 0:02:56]}  e5 {[%clk 0:02:47]} 11. d5 {[%clk 0:02:54]}  Nd4 {[%clk 0:02:47]} 12. Nc2 {[%clk 0:02:52]}  c5 {[%clk 0:02:46]} 13. dxc6 {[%clk 0:02:51]}  bxc6 {[%clk 0:02:47]} 14. Nxd4 {[%clk 0:02:50]}  exd4 {[%clk 0:02:47]} 15. Qxd4 {[%clk 0:02:51]}  Bxg2 {[%clk 0:02:40]} 16. Kxg2 {[%clk 0:02:51]}  Rfe8 {[%clk 0:02:35]} 17. Rd1 {[%clk 0:02:47]}  Nxe4 {[%clk 0:02:33]} 18. Qd3 {[%clk 0:02:41]}  Nxc3 {[%clk 0:02:30]} 19. bxc3 {[%clk 0:02:40]}  Qe6 {[%clk 0:02:24]} 20. Bf4 {[%clk 0:02:23]}  Qe2+ {[%clk 0:02:12]} 21. Kh3 {[%clk 0:02:20]}  Qe6+ {[%clk 0:01:53]} 22. g4 {[%clk 0:02:13]}  Rad8 {[%clk 0:01:53]} 23. Bg3 {[%clk 0:02:06]}  Qf6 {[%clk 0:01:44]} 24. Rac1 {[%clk 0:02:00]}  Bh6 {[%clk 0:01:38]} 25. Rc2 {[%clk 0:01:58]}  Re3 {[%clk 0:01:37]} 26. Qd4 {[%clk 0:01:53]}  Qxf3 {[%clk 0:01:23]} 27. Rf2 {[%clk 0:01:52]}  Qxf2 {[%clk 0:01:22]} 28. Qxa7 {[%clk 0:01:02]}  Rxg3+ {[%clk 0:01:21]} 29. hxg3 {[%clk 0:01:02]}  Qxa7 {[%clk 0:01:21]} 30. Rxd6 {[%clk 0:01:00]}  Rxd6 {[%clk 0:01:19]} 31. g5 {[%clk 0:01:00]}  Bxg5 {[%clk 0:01:18]} 32. c5 {[%clk 0:01:00]}  Qd7+ {[%clk 0:01:17]} 33. Kg2 {[%clk 0:00:58]}  Rd2+ {[%clk 0:01:17]} 34. Kf3 {[%clk 0:00:58]}  f5 {[%clk 0:01:16]} 35. a4 {[%clk 0:00:56]}  Qd3# {[%clk 0:01:16]} 0-1


[Site "https://www.chess.com"]

[Event "Titled Tuesday Blitz April 19 Late 2022"]
[White "Safarli, Eltaj"]
[Black "Nozdrachev, Leonid"]
[WhiteFideId "13402129"]
[BlackFideId "24113433"]
[WhiteElo "2634"]
[BlackElo "2242"]
[Result "1-0"]
[Round "02"]
[TimeControl "180+1"]
[Date "2022.04.19"]
[WhiteClock "0:01:16"]
[BlackClock "0:00:04"]

1. e4 {[%clk 0:03:00]}  c6 {[%clk 0:02:58]} 2. d4 {[%clk 0:03:00]}  d5 {[%clk 0:02:57]} 3. exd5 {[%clk 0:03:01]}  cxd5 {[%clk 0:02:57]} 4. c4 {[%clk 0:03:02]}  Nf6 {[%clk 0:02:56]} 5. Nc3 {[%clk 0:03:03]}  g6 {[%clk 0:02:53]} 6. Qb3 {[%clk 0:03:03]}  Bg7 {[%clk 0:02:52]} 7. cxd5 {[%clk 0:03:03]}  O-O {[%clk 0:02:51]} 8. Be2 {[%clk 0:03:04]}  Na6 {[%clk 0:02:50]} 9. Bf3 {[%clk 0:03:04]}  Qb6 {[%clk 0:02:49]} 10. Qxb6 {[%clk 0:03:04]}  axb6 {[%clk 0:02:50]} 11. Nge2 {[%clk 0:03:05]}  Nb4 {[%clk 0:02:48]} 12. O-O {[%clk 0:03:04]}  Rd8 {[%clk 0:02:43]} 13. d6 {[%clk 0:03:05]}  Rxd6 {[%clk 0:02:38]} 14. Bf4 {[%clk 0:03:04]}  Rd7 {[%clk 0:02:36]} 15. Be5 {[%clk 0:03:04]}  Nfd5 {[%clk 0:02:31]} 16. Rfd1 {[%clk 0:02:57]}  e6 {[%clk 0:02:23]} 17. Rac1 {[%clk 0:02:50]}  Nc6 {[%clk 0:02:21]} 18. Bxg7 {[%clk 0:02:37]}  Kxg7 {[%clk 0:02:19]} 19. Nxd5 {[%clk 0:02:37]}  exd5 {[%clk 0:02:19]} 20. Nc3 {[%clk 0:02:35]}  Ne7 {[%clk 0:01:41]} 21. Re1 {[%clk 0:02:27]}  Kf8 {[%clk 0:01:39]} 22. a3 {[%clk 0:02:24]}  Rd8 {[%clk 0:01:02]} 23. Nb5 {[%clk 0:02:13]}  Bd7 {[%clk 0:01:01]} 24. Nc7 {[%clk 0:02:06]}  Rab8 {[%clk 0:00:45]} 25. Nxd5 {[%clk 0:02:00]}  Nxd5 {[%clk 0:00:44]} 26. Bxd5 {[%clk 0:02:01]}  Bc6 {[%clk 0:00:27]} 27. Bxc6 {[%clk 0:01:57]}  bxc6 {[%clk 0:00:28]} 28. Rxc6 {[%clk 0:01:51]}  Rxd4 {[%clk 0:00:27]} 29. Rc2 {[%clk 0:01:51]}  b5 {[%clk 0:00:25]} 30. g3 {[%clk 0:01:43]}  b4 {[%clk 0:00:25]} 31. Re3 {[%clk 0:01:38]}  bxa3 {[%clk 0:00:24]} 32. bxa3 {[%clk 0:01:39]}  Rd1+ {[%clk 0:00:21]} 33. Kg2 {[%clk 0:01:38]}  Rb7 {[%clk 0:00:21]} 34. Ra2 {[%clk 0:01:35]}  Ra7 {[%clk 0:00:21]} 35. Re4 {[%clk 0:01:33]}  Rd5 {[%clk 0:00:19]} 36. a4 {[%clk 0:01:33]}  Rda5 {[%clk 0:00:20]} 37. h4 {[%clk 0:01:32]}  h5 {[%clk 0:00:19]} 38. Rf4 {[%clk 0:01:32]}  Kg7 {[%clk 0:00:19]} 39. Kf1 {[%clk 0:01:32]}  R7a6 {[%clk 0:00:19]} 40. Ke2 {[%clk 0:01:32]}  Rd6 {[%clk 0:00:19]} 41. Ra3 {[%clk 0:01:28]}  Rd7 {[%clk 0:00:19]} 42. Rd3 {[%clk 0:01:23]}  Rda7 {[%clk 0:00:10]} 43. Rdd4 {[%clk 0:01:23]}  Rb7 {[%clk 0:00:10]} 44. Kd3 {[%clk 0:01:21]}  Rb3+ {[%clk 0:00:10]} 45. Kc2 {[%clk 0:01:21]}  Ra3 {[%clk 0:00:09]} 46. Kb2 {[%clk 0:01:19]}  g5 {[%clk 0:00:04]} 47. hxg5 {[%clk 0:01:16]} 1-0


[Site "https://www.chess.com"]